bitfinex-derivatives/quotes_SOLF0:USTF0_20240816
["timestamp","ask_amount","ask_price","bid_price","bid_amount"]
[1723819665470,3.5962,139.01,138.96,3.5972]
[1723819665873,51.77,139.07,138.96,3.5972]
[1723819666072,3.5964,139.0,138.95,3.5974]
[1723819666269,51.77,139.05,138.93,1.3133]
[1723819666468,0.04657431,138.99,138.96,0.04972782]
[1723819667381,3.5982,138.93,138.88,3.5992]
[1723819667571,51.77,138.98,138.87,1.3867]
[1723819667771,6.54,138.99,138.87,1.3867]
[1723819667978,3.5977,138.95,138.87,1.3867]
[1723819668180,6.54,138.99,138.87,1.3867]
[1723819668379,3.5981,138.93,138.89,3.5989]
[1723819668578,0.05060152,138.92,138.9,0.04568402]
[1723819668981,51.77,138.98,138.88,3.5993]
[1723819669285,0.04984015,138.92,138.9,0.05506378]
[1723819669683,51.77,138.98,138.9,0.05506378]
[1723819670173,3.5983,138.92,138.9,0.05506378]
[1723819671886,0.05419789,138.95,138.9,0.05506378]
[1723819672384,3.5984,138.92,138.9,0.05506378]
[1723819672581,0.05419789,138.95,138.9,0.05506378]
[1723819673086,3.5986,138.91,138.9,0.05506378]
[1723819673289,0.05287336,138.92,138.9,0.05506378]
[1723819673488,54.4414,138.98,138.9,0.05506378]
[1723819673988,0.05334498,138.95,138.9,0.05506378]
[1723819674287,3.5983,138.92,138.9,0.05506378]
[1723819674486,0.05334498,138.95,138.91,3.5686066]
[1723819674784,3.5979,138.94,138.9,0.05506378]
[1723819674980,0.05334498,138.95,138.9,0.05506378]
[1723819675377,0.05334498,138.95,138.91,7.12007928]
[1723819675579,0.05334498,138.95,138.91,3.52167928]
[1723819675782,3.598,138.94,138.91,3.52167928]
[1723819675983,0.05334498,138.95,138.9,0.05506378]
[1723819676474,0.05334498,138.95,138.91,3.58716208]
[1723819676674,0.05334498,138.95,138.9,0.05506378]
[1723819676874,3.65104498,138.95,138.92,3.5983]
[1723819677090,0.05334498,138.95,138.93,3.62997776]
[1723819677279,0.05334498,138.95,138.9,51.82506378]
[1723819677479,0.05334498,138.95,138.92,3.5981]
[1723819677685,0.05334498,138.95,138.93,3.68610587]
[1723819678386,0.05334498,138.95,138.91,3.5984]
[1723819678585,0.05334498,138.95,138.9,51.82506378]
[1723819678895,0.05334498,138.95,138.9,0.05506378]
[1723819679386,3.5986,138.91,138.9,0.05506378]
[1723819683290,0.0456003,138.92,138.9,0.05506378]
[1723819683585,0.0456003,138.92,138.91,3.53591061]
[1723819683893,0.0456003,138.92,138.9,0.05506378]
[1723819684081,53.6348,139.0,138.9,0.05506378]
[1723819684082,273.13,139.05,138.91,43.19]
[1723819684287,3.5972,138.97,138.94,43.19]
[1723819684484,7.45906495,139.04,138.94,43.19]
[1723819684688,3.5972,138.97,138.94,43.19]
[1723819685387,3.64981695,138.97,138.94,43.23653985]
[1723819685581,0.05261695,138.97,138.94,43.23653985]
[1723819685789,0.05261695,138.97,138.94,0.04653985]
[1723819686286,3.5975,138.95,138.94,0.04653985]
[1723819688389,1.3418,138.96,138.88,43.19]
[1723819688598,1.3418,138.96,138.83,43.19]
[1723819688599,43.19,138.94,138.83,43.19]
[1723819688891,43.19,138.94,138.83,49.73]
[1723819689095,43.19,138.94,138.84,3.6004]
[1723819689395,43.19,138.94,138.84,3.52876938]
[1723819689611,43.19,138.9,138.81,1.2799]
[1723819689786,3.6006,138.84,138.81,1.2799]
[1723819690017,4.95343277,138.89,138.81,3.616206]
[1723819690191,3.6009,138.83,138.79,3.6016]
[1723819690399,3.6009,138.83,138.81,0.05057637]
[1723819690695,3.6009,138.83,138.81,3.61820647]
[1723819690892,3.6009,138.83,138.81,0.05057637]
[1723819691091,3.64912542,138.82,138.81,0.05057637]
[1723819691397,3.64912542,138.82,138.81,3.58656859]
[1723819691699,3.64912542,138.82,138.81,0.05057637]
[1723819692196,0.04822542,138.82,138.81,3.58332786]
[1723819692400,0.04822542,138.82,138.81,0.05057637]
[1723819692989,0.04822542,138.82,138.81,3.70071416]
[1723819694401,3.64912542,138.82,138.81,0.05057637]
[1723819697696,0.04822542,138.82,138.81,0.05057637]
[1723819698602,3.64912542,138.82,138.81,0.05057637]
[1723819699895,0.04822542,138.82,138.73,1.3351]
[1723819700196,10.19975752,138.84,138.74,3.6028]
[1723819700402,3.6019,138.79,138.73,4.99521759]
[1723819700599,3.6019,138.79,138.76,3.6023]
[1723819700903,3.6019,138.78,138.73,1.3351]
[1723819701097,6.54,138.84,138.76,0.04590584]
[1723819701296,0.05278675,138.79,138.76,0.04590584]
[1723819702697,3.6022,138.77,138.76,0.04590584]
[1723819703093,6.54,138.79,138.68,3.6044]
[1723819703298,6.54,138.79,138.67,54.4937]
[1723819703810,6.54,138.79,138.7,3.6039]
[1723819704396,0.05095606,138.76,138.73,0.05093302]
[1723819705211,3.6031,138.74,138.73,0.05093302]
[1723819707706,3.6031,138.74,138.56,28.8]
[1723819707707,6.54,138.74,138.56,28.8]
[1723819707902,51.84,138.7,138.6,1.2951]
[1723819708102,51.84,138.7,138.6,4.89093579]
[1723819708408,3.6055,138.65,138.6,1.2951]
[1723819708792,6.54,138.69,138.6,4.83725047]
[1723819708998,0.05396086,138.64,138.61,0.0514454]
[1723819709235,0.05396086,138.64,138.62,3.6059]
[1723819709500,0.05396086,138.64,138.61,0.0514454]
[1723819710006,0.05396086,138.64,138.63,3.6058]
[1723819710200,7.9101,138.72,138.61,0.0514454]
[1723819710402,3.6036,138.72,138.68,3.6045]
[1723819710598,3.51728948,138.77,138.68,10.22771336]
[1723819710804,2.666,138.78,138.68,10.22771336]
[1723819710805,2.666,138.78,138.69,1.3247]
[1723819711108,2.666,138.78,138.7,7.2560144]
[1723819711301,2.666,138.78,138.7,3.6038]
[1723819711499,0.04573388,138.75,138.72,0.04918089]
[1723819711709,3.6031,138.74,138.72,0.04918089]
[1723819712007,0.04573388,138.75,138.72,0.04918089]
[1723819713009,0.04573388,138.75,138.73,3.6032]
[1723819713304,0.04573388,138.75,138.73,6.54]
[1723819713502,0.04573388,138.75,138.72,0.04918089]
[1723819714700,0.04573388,138.75,138.72,0.00918089]
[1723819714902,0.04573388,138.75,138.72,3.61258089]
[1723819716003,0.04573388,138.75,138.72,0.00918089]
[1723819716603,0.04573388,138.75,138.73,3.6032]
[1723819716803,0.04573388,138.75,138.72,0.00918089]
[1723819719907,0.04573388,138.75,138.72,43.26918089]
[1723819720207,3.64863388,138.75,138.72,0.00918089]
[1723819720507,0.04573388,138.75,138.72,0.00918089]
[1723819721010,3.6032,138.73,138.72,0.00918089]
[1723819722404,0.04573388,138.75,138.72,0.00918089]
[1723819725209,0.04573388,138.75,138.72,3.61258089]
[1723819725407,0.04573388,138.75,138.72,0.00918089]
[1723819726314,0.04573388,138.75,138.73,3.6031]
[1723819726808,0.04573388,138.75,138.73,3.6032]
[1723819727003,0.04573388,138.75,138.72,0.00918089]
[1723819727406,3.64853388,138.75,138.72,3.61248089]
[1723819728117,3.603,138.74,138.72,0.00918089]
[1723819728509,43.30573388,138.75,138.72,0.00918089]
[1723819728815,3.6032,138.73,138.72,0.00918089]
[1723819729620,43.30573388,138.75,138.64,1.3758]
[1723819729912,43.26,138.75,138.69,3.6041]
[1723819730216,43.26,138.75,138.68,3.62269664]
[1723819730416,43.26,138.75,138.64,1.3758]
[1723819730613,3.6036,138.72,138.64,1.3758]
[1723819730916,0.04826208,138.71,138.7,3.604]
[1723819731217,43.26,138.79,138.7,3.57699751]
[1723819731517,43.26,138.79,138.68,6.54]
[1723819731716,43.26,138.79,138.69,3.67933127]
[1723819731920,0.04772704,138.76,138.73,0.05045016]
[1723819733722,0.04772704,138.76,138.74,3.6029]
[1723819734310,0.04772704,138.76,138.73,3.65355016]
[1723819734621,0.04772704,138.76,138.73,0.05045016]
[1723819735321,0.04772704,138.76,138.74,3.6028]
[1723819735519,0.04772704,138.76,138.73,0.05045016]
[1723819736220,0.04772704,138.76,138.74,3.6029]
[1723819736720,0.04772704,138.76,138.74,3.6028]
[1723819736908,0.04772704,138.76,138.73,0.05045016]
[1723819737619,3.6029,138.75,138.73,0.05045016]
[1723819737819,0.04772704,138.76,138.73,0.05045016]
[1723819738120,0.04772704,138.76,138.74,3.6028]
[1723819738308,0.04772704,138.76,138.73,0.05045016]
[1723819738513,3.601,138.82,138.74,49.8]
[1723819738713,3.601,138.82,138.75,2.5888]
[1723819739216,43.26,138.86,138.76,43.26]
[1723819739523,4.1183,138.87,138.76,43.26]
[1723819739715,3.6008,138.83,138.76,43.26]
[1723819740115,0.04944995,138.82,138.8,0.04639883]
[1723819741331,3.6011,138.81,138.8,0.04639883]
[1723819741720,43.30944995,138.82,138.73,6.54]
[1723819741919,3.6018,138.79,138.76,3.6023]
[1723819742121,0.04944995,138.82,138.73,6.54]
[1723819742420,43.26,138.84,138.73,6.54]
[1723819742622,6.54,138.85,138.74,43.26]
[1723819743214,3.6011,138.82,138.78,3.65170873]
[1723819743527,0.05400271,138.81,138.78,7.18487036]
[1723819743824,0.05400271,138.81,138.78,3.58317036]
[1723819744026,0.05400271,138.81,138.79,3.6015]
[1723819744421,3.65530271,138.81,138.78,7.18507036]
[1723819744725,6.51400271,138.85,138.78,0.05000873]
[1723819745323,43.26,138.82,138.78,0.05000873]
[1723819745519,3.6017,138.79,138.78,0.05000873]
[1723819746226,43.26,138.8,138.72,1.3237]
[1723819746227,3.6023,138.77,138.74,3.6029]
[1723819747222,3.602,138.78,138.75,3.6026]
[1723819747626,43.26,138.81,138.75,0.05088165]
[1723819747844,0.05043935,138.78,138.75,0.05088165]
[1723819748329,3.6024,138.76,138.75,0.05088165]
[1723819750533,0.05043935,138.78,138.75,0.05088165]
[1723819750924,3.6024,138.76,138.75,0.05088165]
[1723819752231,0.05043935,138.78,138.75,0.05088165]
[1723819752625,3.6024,138.77,138.75,0.05088165]
[1723819752827,0.05043935,138.78,138.75,0.05088165]
[1723819753141,3.6024,138.76,138.75,0.05088165]
[1723819753727,0.05043935,138.78,138.75,0.05088165]
[1723819754935,0.05043935,138.78,138.75,3.65348165]
[1723819755122,0.05043935,138.78,138.75,43.31088165]
[1723819755323,0.05043935,138.78,138.75,46.91338165]
[1723819755529,0.05043935,138.78,138.75,0.05088165]
[1723819756429,3.6023,138.77,138.75,0.05088165]
[1723819756930,0.05043935,138.78,138.75,0.05088165]
[1723819757135,3.6024,138.76,138.75,0.05088165]
[1723819759739,43.26,138.76,138.68,3.6043]
[1723819759929,2.6741,138.75,138.65,6.52]
[1723819760125,43.26,138.73,138.62,3.9612]
[1723819760329,43.26,138.71,138.62,3.9612]
[1723819760531,3.6048,138.68,138.62,3.9612]
[1723819760734,6.52,138.72,138.62,3.9612]
[1723819760932,0.05181713,138.68,138.65,0.04543642]
[1723819761135,0.05181713,138.68,138.65,3.65063642]
[1723819761530,0.05181713,138.68,138.65,0.04543642]
[1723819761728,0.05181713,138.68,138.66,43.26]
[1723819761934,0.05181713,138.68,138.65,0.04543642]
[1723819762330,0.05181713,138.68,138.65,3.65053642]
[1723819762729,0.05181713,138.68,138.66,3.605]
[1723819763137,0.05181713,138.68,138.65,0.04543642]
[1723819765038,3.605,138.66,138.65,0.04543642]
[1723819767252,3.605,138.66,138.5,300.0]
[1723819767253,56.208,138.61,138.5,300.0]
[1723819767445,43.26,138.51,138.5,64.87]
[1723819767642,43.26,138.51,138.5,61.36512692]
[1723819767643,46.8689,138.51,138.5,61.36512692]
[1723819767943,46.8689,138.51,138.5,17.69512692]
[1723819768146,46.8689,138.51,138.5,14.69512692]
[1723819768354,43.26,138.51,138.34,43.26]
[1723819768547,43.26,138.46,138.34,48.08876812]
[1723819768754,7.208,138.45,138.34,48.08876812]
[1723819768957,7.208,138.45,138.34,54.60876812]
[1723819769156,7.208,138.45,138.39,0.05250775]
[1723819769750,0.04740954,138.41,138.39,0.05250775]
[1723819770552,3.6118,138.4,138.39,0.05250775]
[1723819771554,0.04740954,138.41,138.39,0.05250775]
[1723819774658,0.04740954,138.41,138.35,3.613]
[1723819774659,3.612,138.4,138.35,3.58550775]
[1723819774959,3.59775,138.39,138.31,3.65218051]
[1723819775256,52.04740954,138.41,138.3,6.54]
[1723819775459,52.04740954,138.41,138.34,3.6134]
[1723819775660,3.6127,138.37,138.3,10.23705555]
[1723819775957,3.68259195,138.38,138.3,3.69705555]
[1723819776158,3.6128,138.37,138.29,6.54]
[1723819776360,52.0,138.41,138.19,278.0]
[1723819776656,3.6128,138.37,138.28,6.54]
[1723819776849,0.05157749,138.35,138.27,2.5881]
[1723819777556,0.05157749,138.35,138.27,6.2555209]
[1723819777749,3.6136,138.34,138.27,6.17749835]
[1723819777949,0.05157749,138.35,138.29,3.6147]
[1723819778154,0.05157749,138.35,138.24,6.54]
[1723819778362,0.05157749,138.35,138.2,54.5736]
[1723819778363,3.6145,138.3,138.2,54.5736]
[1723819778552,10.13156565,138.31,138.23,3.69667936]
[1723819778748,6.54,138.31,138.2,54.5736]
[1723819779053,62.11257748,138.31,138.24,3.6159]
[1723819779262,62.11257748,138.31,138.21,3.57908359]
[1723819779458,52.0,138.31,138.21,3.57908359]
[1723819779753,6.54,138.31,138.23,52.0]
[1723819779955,0.04790239,138.29,138.23,52.0]
[1723819780756,0.04790239,138.29,138.21,3.57908359]
[1723819780949,3.66270239,138.29,138.21,3.57908359]
[1723819781256,0.04790239,138.29,138.2,6.54]
[1723819781760,0.04790239,138.29,138.18,53.313]
[1723819781955,3.6155,138.26,138.18,53.313]
[1723819782162,3.6155,138.26,138.19,3.6172]
[1723819782359,3.6155,138.26,138.18,4.87648759]
[1723819782360,7.27263037,138.26,138.18,4.87648759]
[1723819782556,7.27263037,138.26,138.18,1.313]
[1723819782557,3.6155,138.26,138.18,1.313]
[1723819783164,0.04790239,138.29,138.2,52.0]
[1723819783459,0.04790239,138.29,138.24,3.69473211]
[1723819783883,0.04790239,138.29,138.2,6.54]
[1723819784062,0.04790239,138.29,138.18,1.313]
[1723819784063,0.04790239,138.29,138.18,53.313]
[1723819784258,0.04790239,138.29,138.23,3.6161]
[1723819784454,6.58790239,138.29,138.23,3.6161]
[1723819784657,6.58790239,138.29,138.18,53.313]
[1723819784856,52.0,138.28,138.18,1.313]
[1723819785159,52.0,138.28,138.07,233.2408]
[1723819785160,55.6155,138.26,138.25,297.0]
[1723819785457,3.6155,138.26,138.25,297.0]
[1723819785652,3.6155,138.26,138.25,32.0]
[1723819786053,7.3205174,138.26,138.25,32.0]
[1723819786257,55.6155,138.26,138.25,29.0]
[1723819786661,55.6155,138.26,138.25,26.0]
[1723819787163,55.6155,138.26,138.25,18.6355]
[1723819787358,13.748,138.27,138.15,3.68307114]
[1723819787359,117.748,138.27,138.15,3.68307114]
[1723819787553,59.208,138.24,138.16,3.6179]
[1723819787760,52.0,138.24,138.15,3.68307114]
[1723819788157,52.0,138.24,138.15,7.30117114]
[1723819788360,52.0,138.24,138.15,3.68307114]
[1723819788563,3.6177,138.18,138.15,3.68307114]
[1723819788764,0.05261598,138.21,138.15,3.68307114]
[1723819789258,0.05261598,138.21,138.16,3.6179]
[1723819789456,1.0,138.23,138.16,3.6179]
[1723819789675,52.0,138.22,138.15,3.68307114]
[1723819789955,0.04584289,138.19,138.15,3.68307114]
[1723819790367,0.04584289,138.19,138.16,3.6178]
[1723819791073,3.66324289,138.19,138.15,3.68307114]
[1723819791257,0.04584289,138.19,138.15,3.68307114]
[1723819791861,0.04584289,138.19,138.17,3.6177]
[1723819792067,0.04584289,138.19,138.15,3.68307114]
[1723819792370,47.02531279,138.27,138.18,3.6174]
[1723819792573,47.02531279,138.27,138.16,7.8678]
[1723819792764,3.6159,138.25,138.17,1.3424]
[1723819792960,43.41,138.3,138.2,43.41]
[1723819793161,3.6151,138.28,138.21,6.54]
[1723819793466,43.41,138.32,138.21,6.54]
[1723819793667,0.05280534,138.26,138.23,0.04620686]
[1723819793866,52.03,138.33,138.27,3.615]
[1723819794264,52.03,138.33,138.21,58.57]
[1723819794476,6.54,138.34,138.28,3.6149]
[1723819794864,52.03,138.35,138.28,3.6149]
[1723819795164,52.03,138.35,138.23,52.03]
[1723819795369,58.57,138.38,138.26,58.57]
[1723819795672,0.04891089,138.32,138.3,0.05519231]
[1723819796157,6.54,138.38,138.3,0.05519231]
[1723819796357,52.03,138.4,138.3,0.05519231]
[1723819796568,3.6125,138.38,138.34,3.6133]
[1723819796969,52.03,138.4,138.29,7.8193]
[1723819797366,52.03,138.42,138.3,52.03]
[1723819797570,3.6119,138.4,138.3,52.03]
[1723819797968,0.0550545,138.36,138.33,0.05167758]
[1723819798175,3.6118,138.41,138.36,3.6127]
[1723819798476,3.6286038,138.44,138.34,6.54]
[1723819798973,3.69704057,138.44,138.34,6.54]
[1723819799174,3.69704057,138.44,138.37,3.6126]
[1723819799773,3.69704057,138.44,138.36,3.58325769]
[1723819799774,0.05325625,138.4,138.38,0.04967764]
[1723819800171,3.6108,138.44,138.39,3.67464521]
[1723819800367,6.54,138.47,138.37,53.4115]
[1723819800678,0.1087,138.54,138.38,1.2664]
[1723819800679,6.54,138.51,138.38,1.2664]
[1723819801178,55.61036797,138.48,138.38,1.2664]
[1723819801475,52.03,138.46,138.38,1.2664]
[1723819801775,0.05448056,138.44,138.42,0.05258]
[1723819802490,3.611,138.43,138.42,0.05258]
[1723819802671,0.05448056,138.44,138.42,0.05258]
[1723819802867,3.611,138.43,138.42,0.05258]
[1723819803675,3.6128,138.37,138.3,6.54]
[1723819803974,52.03,138.4,138.32,1.3551]
[1723819804176,52.03,138.42,138.32,1.3551]
[1723819804370,52.03,138.42,138.35,3.6129]
[1723819804571,3.6127,138.37,138.32,1.3551]
[1723819804879,52.03,138.4,138.32,1.3551]
[1723819805169,52.03,138.38,138.37,0.05344407]
[1723819805574,55.6423,138.38,138.37,0.05344407]
[1723819805773,55.6423,138.38,138.31,1.3595]
[1723819805774,52.03,138.38,138.31,1.3595]
[1723819806284,52.03,138.36,138.31,1.3595]
[1723819806482,52.03,138.36,138.29,1.2597]
[1723819806483,3.62992078,138.35,138.29,1.2597]
[1723819806667,52.03,138.36,138.28,1.2751]
[1723819807067,3.64076067,138.35,138.28,1.2751]
[1723819807274,52.03,138.33,138.25,6.19962818]
[1723819807479,52.03,138.31,138.25,1.3575]
[1723819807685,52.03,138.33,138.25,1.3575]
[1723819807686,52.03,138.28,138.25,1.3575]
[1723819807879,52.03,138.31,138.25,1.3575]
[1723819808079,52.07987685,138.33,138.25,1.3575]
[1723819808271,52.07987685,138.33,138.25,4.9731]
[1723819808469,52.07987685,138.33,138.25,1.3575]
[1723819808781,3.6147,138.29,138.27,0.04741675]
[1723819808980,52.03,138.33,138.27,0.04741675]
[1723819809382,3.6149,138.28,138.27,0.04741675]
[1723819809978,0.04674509,138.3,138.27,0.04741675]
[1723819811483,3.6149,138.28,138.27,0.04741675]
[1723819811685,0.04674509,138.3,138.27,0.04741675]
[1723819812677,3.66124509,138.3,138.27,0.04741675]
[1723819812883,0.04674509,138.3,138.27,0.04741675]
[1723819813181,3.66124509,138.3,138.27,0.04741675]
[1723819813577,0.04674509,138.3,138.27,0.04741675]
[1723819813779,3.66114509,138.3,138.27,0.04741675]
[1723819814083,0.04674509,138.3,138.27,0.04741675]
[1723819814277,0.04674509,138.3,138.27,3.66241675]
[1723819815071,0.04674509,138.3,138.29,3.6147]
[1723819815281,0.04674509,138.3,138.27,0.04741675]
[1723819815479,0.04674509,138.3,138.27,3.66241675]
[1723819815688,0.04674509,138.3,138.27,0.04741675]
[1723819815977,3.6149,138.29,138.27,0.04741675]
[1723819816574,3.6149,138.28,138.27,0.04741675]
[1723819816978,0.04674509,138.3,138.27,0.04741675]
[1723819817883,3.6147,138.29,138.27,0.04741675]
[1723819819587,0.04674509,138.3,138.27,0.04741675]
[1723819819784,0.04674509,138.3,138.27,3.6855815]
[1723819820086,3.58357781,138.36,138.27,3.6855815]
[1723819820087,43.35,138.36,138.27,3.69208855]
[1723819820384,3.53369042,138.38,138.28,1.2757]
[1723819820385,43.35,138.38,138.28,1.2757]
[1723819820593,46.97298163,138.38,138.28,1.2757]
[1723819820776,43.35,138.36,138.29,3.70504277]
[1723819820977,43.35,138.36,138.29,1.3902]
[1723819821175,43.35,138.36,138.29,5.00450556]
[1723819821377,46.97804267,138.38,138.29,5.00450556]
[1723819821578,0.05186783,138.34,138.32,3.6138]
[1723819822279,0.05186783,138.34,138.31,0.05140212]
[1723819822485,43.40186783,138.34,138.31,0.05140212]
[1723819822686,3.6139,138.32,138.31,0.05140212]
[1723819823078,50.64710035,138.32,138.31,0.05140212]
[1723819823280,46.9639,138.32,138.31,0.05140212]
[1723819823681,50.6420415,138.32,138.31,0.05140212]
[1723819823884,53.9081415,138.32,138.24,1.349]
[1723819824087,43.35,138.29,138.24,1.349]
[1723819824976,3.6154,138.27,138.24,1.349]
[1723819825183,0.05566258,138.28,138.25,0.05535138]
[1723819825678,3.67076258,138.28,138.25,0.05535138]
[1723819825884,0.05566258,138.28,138.25,3.67105138]
[1723819826682,0.05566258,138.28,138.25,0.05535138]
[1723819826891,43.35,138.27,138.25,0.05535138]
[1723819827285,3.6155,138.26,138.25,0.05535138]
[1723819829093,7.19396748,138.26,138.25,0.05535138]
[1723819829295,3.57846748,138.26,138.18,1.295]
[1723819829500,50.23,138.27,138.18,6.14515051]
[1723819829796,50.23,138.27,138.18,2.575]
[1723819830195,43.35,138.25,138.18,2.575]
[1723819830394,3.6167,138.22,138.18,2.575]
[1723819830595,3.6167,138.22,138.21,0.05336406]
[1723819831388,0.05197423,138.24,138.21,0.05336406]
[1723819831588,43.35,138.23,138.21,0.05336406]
[1723819831997,43.35,138.23,138.15,3.68307114]
[1723819831998,3.6177,138.18,138.15,3.68307114]
[1723819832594,3.6179,138.17,138.15,3.68307114]
[1723819832795,43.35,138.21,138.15,3.68307114]
[1723819832996,3.6177,138.18,138.15,3.68307114]
[1723819833194,3.6177,138.18,138.17,0.04665202]
[1723819833498,3.6176,138.18,138.17,0.04665202]
[1723819833704,0.0533456,138.19,138.17,0.04665202]
[1723819833898,50.23,138.27,138.17,0.04665202]
[1723819834198,50.23,138.27,138.15,47.03307114]
[1723819834496,43.35,138.25,138.15,47.03307114]
[1723819834710,3.6171,138.2,138.17,3.6176]
[1723819835202,3.6171,138.2,138.19,0.05005044]
[1723819835396,3.6171,138.2,138.16,3.6179]
[1723819835598,3.6171,138.2,138.18,0.0514577]
[1723819835795,0.04992231,138.21,138.18,0.0514577]
[1723819836501,0.04992231,138.21,138.18,3.6688577]
[1723819837089,0.04992231,138.21,138.18,0.0514577]
[1723819837797,3.6173,138.19,138.18,0.0514577]
[1723819838195,7.24671956,138.19,138.18,0.0514577]
[1723819838393,3.6181,138.16,138.15,3.68307114]
[1723819838801,3.6177,138.18,138.15,3.68307114]
[1723819839000,43.35,138.21,138.15,3.68307114]
[1723819839300,3.618,138.17,138.15,3.68307114]
[1723819840000,7.36847646,138.19,138.15,3.68307114]
[1723819840201,0.05241673,138.19,138.15,3.73001778]
[1723819840601,3.6177,138.18,138.15,3.73001778]
[1723819840799,0.05241673,138.19,138.15,3.73001778]
[1723819841303,0.05241673,138.19,138.16,1.3625]
[1723819841997,0.05241673,138.19,138.15,3.73001778]
[1723819842194,0.05241673,138.19,138.15,7.34831778]
[1723819842395,0.05241673,138.19,138.15,3.73001778]
[1723819842592,0.05241673,138.19,138.18,3.6176]
[1723819843094,334.62193268,138.34,138.2,3.6169]
[1723819843095,3.6161,138.24,138.2,3.6169]
[1723819843495,6.82,138.27,138.18,1.2813]
[1723819843693,3.6162,138.24,138.2,3.6169]
[1723819843895,43.35,138.26,138.16,50.17]
[1723819844092,43.35,138.26,138.16,6.82]
[1723819844300,3.6166,138.22,138.18,3.6175]
[1723819844501,3.66494974,138.22,138.2,0.05159298]
[1723819844696,0.04834974,138.22,138.2,0.05159298]
[1723819845097,6.82,138.29,138.2,0.05159298]
[1723819845098,6.82,138.29,138.21,50.17]
[1723819845298,43.35,138.38,138.27,43.35]
[1723819845502,43.6703,138.38,138.27,46.89560043]
[1723819845811,3.6131,138.35,138.31,3.614]
[1723819846102,43.6703,138.38,138.31,3.614]
[1723819846302,0.3203,138.38,138.29,43.35]
[1723819846503,0.0534452,138.34,138.32,0.05029883]
[1723819847401,3.6669452,138.34,138.32,0.05029883]
[1723819847603,0.0534452,138.34,138.32,0.05029883]
[1723819848007,52.02,138.33,138.23,6.82]
[1723819848302,52.02,138.28,138.11,226.0]
[1723819848499,52.02,138.28,138.16,53.3278]
[1723819849403,52.02,138.26,138.16,1.3078]
[1723819849605,0.0546158,138.23,138.21,0.05484209]
[1723819849804,3.6165,138.22,138.21,0.05484209]
[1723819851210,0.0546158,138.23,138.15,3.68307114]
[1723819851706,58.84,138.24,138.15,3.68307114]
[1723819852409,58.84,138.24,138.15,7.30127114]
[1723819853009,58.84,138.24,138.15,3.68307114]
[1723819853208,52.07385162,138.21,138.18,0.04474647]
[1723819853409,3.6173,138.19,138.18,0.04474647]
[1723819853614,52.07385162,138.21,138.15,3.68307114]
[1723819853913,3.6181,138.16,138.15,3.68307114]
[1723819857214,0.04682314,138.17,138.15,3.68307114]
[1723819857215,3.66472314,138.17,138.15,3.68307114]
[1723819858015,0.04682314,138.17,138.15,3.68307114]
[1723819859808,3.66462314,138.17,138.15,3.68307114]
[1723819860115,0.04682314,138.17,138.15,3.68307114]
[1723819860513,0.04682314,138.17,138.16,3.6181]
[1723819860708,0.04682314,138.17,138.15,3.68307114]
[1723819864013,0.04682314,138.17,138.16,7.1757904]
[1723819864210,0.04682314,138.17,138.16,3.6181]
[1723819864409,0.04682314,138.17,138.15,3.68307114]
[1723819864620,0.04682314,138.17,138.16,7.19755425]
[1723819864815,0.04682314,138.17,138.15,3.68307114]
[1723819865322,0.04682314,138.17,138.16,1.2787]
[1723819865624,8.1237,138.25,138.16,56.87164154]
[1723819865825,1.3037,138.25,138.17,1.3596]
[1723819866026,3.616,138.24,138.2,3.6169]
[1723819866516,3.6158,138.25,138.21,3.6167]
[1723819866724,53.3683,138.3,138.19,3.58777604]
[1723819867022,0.04651781,138.23,138.22,3.6163]
[1723819867223,3.6153,138.27,138.21,0.04682314]
[1723819867421,3.6153,138.27,138.2,52.02]
[1723819867721,0.05235989,138.24,138.23,3.66292314]
[1723819868413,50.19,138.32,138.23,0.04682314]
[1723819868620,50.19,138.32,138.21,43.37]
[1723819868820,50.19,138.32,138.21,46.9867]
[1723819869024,43.37,138.29,138.19,6.82]